[Event "*** Titled Tuesday Blitz"]
[Site "Chess.com"]
[Date "2020.05.05"]
[Round "8"]
[White "Evgeny81"]
[Black "Gmedmundo"]
[Result "1-0"]
[WhiteElo "2675"]
[BlackElo "2499"]
[TimeControl "180+1"]
[EndTime "11:34:02 PDT"]
[Termination "Evgeny81 won on time"]

1. d4 {[%clk 0:03:00.9]} 1... Nf6 {[%clk 0:02:59.1]} 2. c4 {[%clk 0:03:00.7]}
2... e6 {[%clk 0:02:59]} 3. Nc3 {[%clk 0:03:00.3]} 3... Bb4 {[%clk 0:02:58.3]}
4. e3 {[%clk 0:03:01]} 4... O-O {[%clk 0:02:57.7]} 5. Bd3 {[%clk 0:03:01]} 5...
c5 {[%clk 0:02:55.6]} 6. Nf3 {[%clk 0:03:00.8]} 6... b6 {[%clk 0:02:52.5]} 7.
O-O {[%clk 0:02:59.7]} 7... Bb7 {[%clk 0:02:50.6]} 8. Na4 {[%clk 0:03:00]} 8...
cxd4 {[%clk 0:02:49.5]} 9. exd4 {[%clk 0:03:00.6]} 9... Re8 {[%clk 0:02:48.1]}
10. a3 {[%clk 0:02:58.8]} 10... Bf8 {[%clk 0:02:42.3]} 11. Bf4 {[%clk
0:02:59.3]} 11... d6 {[%clk 0:02:39.3]} 12. Nc3 {[%clk 0:02:57.5]} 12... Nbd7
{[%clk 0:02:35.5]} 13. Re1 {[%clk 0:02:56.9]} 13... a6 {[%clk 0:02:30.5]} 14.
Rc1 {[%clk 0:02:55.9]} 14... Rc8 {[%clk 0:02:25.5]} 15. Bf1 {[%clk 0:02:48.7]}
15... g6 {[%clk 0:02:21.9]} 16. Nd2 {[%clk 0:02:42.6]} 16... Nh5 {[%clk
0:02:18.5]} 17. Be3 {[%clk 0:02:41.2]} 17... Ndf6 {[%clk 0:02:07.7]} 18. b4
{[%clk 0:02:28.3]} 18... e5 {[%clk 0:01:55]} 19. d5 {[%clk 0:02:24.3]} 19... Qd7
{[%clk 0:01:40]} 20. Bxb6 {[%clk 0:02:16.5]} 20... Nf4 {[%clk 0:01:33.6]} 21.
Be3 {[%clk 0:02:10.7]} 21... Ng4 {[%clk 0:01:30.9]} 22. Nde4 {[%clk 0:02:02.2]}
22... Bg7 {[%clk 0:01:29.1]} 23. c5 {[%clk 0:01:50.9]} 23... dxc5 {[%clk
0:01:23.9]} 24. Bxc5 {[%clk 0:01:35.6]} 24... Nxd5 {[%clk 0:01:02.9]} 25. Nxd5
{[%clk 0:01:34.3]} 25... Bxd5 {[%clk 0:01:00.7]} 26. Nd6 {[%clk 0:01:33.4]}
26... Bc6 {[%clk 0:00:48]} 27. Nxe8 {[%clk 0:01:29.1]} 1-0

[Event "*** Titled Tuesday Blitz"]
[Site "Chess.com"]
[Date "2020.05.05"]
[Round "8"]
[White "Raja3401"]
[Black "Grandmaster2B"]
[Result "0-1"]
[WhiteElo "2688"]
[BlackElo "2494"]
[TimeControl "180+1"]
[EndTime "11:34:03 PDT"]
[Termination "Grandmaster2B won by resignation"]

1. e4 {[%clk 0:03:00.9]} 1... c5 {[%clk 0:02:58.8]} 2. Nf3 {[%clk 0:02:59.5]}
2... d6 {[%clk 0:02:59]} 3. d4 {[%clk 0:02:59.2]} 3... cxd4 {[%clk 0:02:59.9]}
4. Nxd4 {[%clk 0:02:59.8]} 4... Nf6 {[%clk 0:03:00.6]} 5. Nc3 {[%clk 0:03:00.4]}
5... a6 {[%clk 0:03:00.9]} 6. Bg5 {[%clk 0:02:59.8]} 6... e6 {[%clk 0:03:01.2]}
7. f4 {[%clk 0:02:53.1]} 7... Be7 {[%clk 0:03:01]} 8. Qf3 {[%clk 0:02:52.7]}
8... Qc7 {[%clk 0:03:01.4]} 9. O-O-O {[%clk 0:02:52.4]} 9... Nbd7 {[%clk
0:03:02]} 10. g4 {[%clk 0:02:49.1]} 10... O-O {[%clk 0:02:57.8]} 11. Bxf6 {[%clk
0:02:46.6]} 11... Nxf6 {[%clk 0:02:58.7]} 12. g5 {[%clk 0:02:45.8]} 12... Nd7
{[%clk 0:02:59.3]} 13. h4 {[%clk 0:02:44.6]} 13... b5 {[%clk 0:02:55.2]} 14. f5
{[%clk 0:02:44.3]} 14... Nc5 {[%clk 0:02:43.6]} 15. Qg3 {[%clk 0:02:40.5]} 15...
b4 {[%clk 0:02:36.8]} 16. Nce2 {[%clk 0:02:36.4]} 16... Nxe4 {[%clk 0:02:32]}
17. Qf4 {[%clk 0:02:36.3]} 17... Nc5 {[%clk 0:02:26.3]} 18. f6 {[%clk
0:02:31.2]} 18... Bd8 {[%clk 0:02:11.2]} 19. fxg7 {[%clk 0:02:30.5]} 19... Re8
{[%clk 0:02:10.9]} 20. Bg2 {[%clk 0:02:26.7]} 20... Bb7 {[%clk 0:02:03.8]} 21.
Bxb7 {[%clk 0:02:26.5]} 21... Nxb7 {[%clk 0:02:02.3]} 22. Qf2 {[%clk 0:02:22.9]}
22... Rc8 {[%clk 0:01:59.6]} 23. Ng3 {[%clk 0:02:20.2]} 23... Nc5 {[%clk
0:01:52.6]} 24. Kb1 {[%clk 0:02:05.3]} 24... d5 {[%clk 0:01:47.5]} 25. g6 {[%clk
0:01:56.3]} 25... fxg6 {[%clk 0:01:37.8]} 26. h5 {[%clk 0:01:56.5]} 26... Qxg7
{[%clk 0:01:34.1]} 27. hxg6 {[%clk 0:01:56.3]} 27... hxg6 {[%clk 0:01:35]} 28.
Nh5 {[%clk 0:01:54.2]} 28... gxh5 {[%clk 0:01:28.4]} 29. Rdg1 {[%clk 0:01:54]}
29... Bg5 {[%clk 0:01:28.3]} 30. Rxg5 {[%clk 0:01:54.4]} 30... Qxg5 {[%clk
0:01:28.7]} 31. Rg1 {[%clk 0:01:55.1]} 31... Qxg1+ {[%clk 0:01:29.1]} 32. Qxg1+
{[%clk 0:01:56]} 32... Kf7 {[%clk 0:01:29.1]} 33. Qg5 {[%clk 0:01:53.5]} 33...
Rg8 {[%clk 0:01:06.1]} 34. Qxh5+ {[%clk 0:01:53.8]} 34... Ke7 {[%clk 0:01:06.4]}
35. b3 {[%clk 0:01:52.7]} 35... Rg1+ {[%clk 0:00:58]} 36. Kb2 {[%clk 0:01:52.8]}
36... Rf8 {[%clk 0:00:54.5]} 37. Qh4+ {[%clk 0:01:47.5]} 37... Ke8 {[%clk
0:00:23.3]} 38. Nc6 {[%clk 0:01:42.6]} 38... Nd3+ {[%clk 0:00:23.9]} 0-1

[Event "*** Titled Tuesday Blitz"]
[Site "Chess.com"]
[Date "2020.05.05"]
[Round "8"]
[White "VinzentSpitzl"]
[Black "MarcoCorvi"]
[Result "1-0"]
[WhiteElo "2384"]
[BlackElo "2236"]
[TimeControl "180+1"]
[EndTime "11:34:11 PDT"]
[Termination "VinzentSpitzl won by resignation"]

1. e4 {[%clk 0:03:00.9]} 1... Nf6 {[%clk 0:02:58.8]} 2. e5 {[%clk 0:03:00.4]}
2... Nd5 {[%clk 0:02:58.9]} 3. d4 {[%clk 0:03:00.8]} 3... d6 {[%clk 0:02:59.3]}
4. Nf3 {[%clk 0:03:00.8]} 4... dxe5 {[%clk 0:02:56.7]} 5. Nxe5 {[%clk
0:03:01.7]} 5... c6 {[%clk 0:02:56.9]} 6. c4 {[%clk 0:02:55.9]} 6... Nb4 {[%clk
0:02:55.2]} 7. Na3 {[%clk 0:02:41.4]} 7... Bf5 {[%clk 0:02:48.8]} 8. Be2 {[%clk
0:02:38.7]} 8... e6 {[%clk 0:02:48.4]} 9. O-O {[%clk 0:02:37]} 9... Nd7 {[%clk
0:02:48.3]} 10. Nxd7 {[%clk 0:02:28.7]} 10... Qxd7 {[%clk 0:02:49.2]} 11. Be3
{[%clk 0:02:27.8]} 11... Be7 {[%clk 0:02:46.9]} 12. Qb3 {[%clk 0:02:18]} 12...
O-O {[%clk 0:02:45.2]} 13. Rfd1 {[%clk 0:02:17.7]} 13... a5 {[%clk 0:02:41.8]}
14. Rd2 {[%clk 0:02:11]} 14... Rfd8 {[%clk 0:02:23.5]} 15. Bf3 {[%clk
0:02:08.8]} 15... Qe8 {[%clk 0:02:10.5]} 16. Rad1 {[%clk 0:01:58.3]} 16... h6
{[%clk 0:02:08.7]} 17. h3 {[%clk 0:01:57.7]} 17... g5 {[%clk 0:02:08.3]} 18. d5
{[%clk 0:01:53.3]} 18... a4 {[%clk 0:02:01.7]} 19. Qc3 {[%clk 0:01:52.9]} 19...
Nxa2 {[%clk 0:01:49.2]} 20. Qe5 {[%clk 0:01:45.1]} 20... f6 {[%clk 0:01:42.3]}
21. Qc7 {[%clk 0:01:30.5]} 21... cxd5 {[%clk 0:01:23.5]} 22. cxd5 {[%clk
0:01:25.9]} 22... Rd7 {[%clk 0:01:01.2]} 23. Qc4 {[%clk 0:01:00]} 23... Nb4
{[%clk 0:01:00.1]} 24. d6 {[%clk 0:00:55.4]} 24... Rad8 {[%clk 0:00:17.5]} 1-0

[Event "*** Titled Tuesday Blitz"]
[Site "Chess.com"]
[Date "2020.05.05"]
[Round "8"]
[White "VerdeNotte"]
[Black "regular_legs"]
[Result "1-0"]
[WhiteElo "2845"]
[BlackElo "2615"]
[TimeControl "180+1"]
[EndTime "11:34:15 PDT"]
[Termination "VerdeNotte won by resignation"]

1. e4 {[%clk 0:02:57.7]} 1... c6 {[%clk 0:02:51]} 2. d4 {[%clk 0:02:56.4]} 2...
d5 {[%clk 0:02:51.9]} 3. e5 {[%clk 0:02:56.9]} 3... Bf5 {[%clk 0:02:51.7]} 4. h4
{[%clk 0:02:57]} 4... Qc7 {[%clk 0:02:50.4]} 5. Nc3 {[%clk 0:02:48.6]} 5... h5
{[%clk 0:02:48.6]} 6. Be2 {[%clk 0:02:41.7]} 6... e6 {[%clk 0:02:43.2]} 7. Be3
{[%clk 0:02:38.3]} 7... c5 {[%clk 0:02:35.1]} 8. Nb5 {[%clk 0:02:36.6]} 8...
Qa5+ {[%clk 0:02:31.6]} 9. b4 {[%clk 0:02:29.8]} 9... cxb4 {[%clk 0:02:25.5]}
10. Nf3 {[%clk 0:02:22.6]} 10... Nc6 {[%clk 0:02:00.6]} 11. O-O {[%clk
0:02:18.8]} 11... a6 {[%clk 0:01:58.7]} 12. Nd6+ {[%clk 0:02:16.2]} 12... Bxd6
{[%clk 0:01:58.9]} 13. exd6 {[%clk 0:02:17.1]} 13... Nf6 {[%clk 0:01:59.4]} 14.
Ne5 {[%clk 0:02:14.1]} 14... Rc8 {[%clk 0:01:50.8]} 15. a3 {[%clk 0:01:57.9]}
15... Qd8 {[%clk 0:01:20.1]} 16. axb4 {[%clk 0:01:45.4]} 16... Nxb4 {[%clk
0:01:11.2]} 17. c4 {[%clk 0:01:45.5]} 17... Nc2 {[%clk 0:01:09.2]} 18. c5 {[%clk
0:01:24.6]} 18... Nxa1 {[%clk 0:01:08.5]} 19. Qa4+ {[%clk 0:01:22.3]} 19... Nd7
{[%clk 0:01:02.8]} 20. Rxa1 {[%clk 0:01:18.1]} 20... f6 {[%clk 0:01:03.1]} 21.
c6 {[%clk 0:01:06]} 21... fxe5 {[%clk 0:00:59.7]} 22. Bg5 {[%clk 0:01:02.9]}
22... Nf6 {[%clk 0:00:38.2]} 23. cxb7+ {[%clk 0:01:02]} 23... Kf7 {[%clk
0:00:38.3]} 24. bxc8=Q {[%clk 0:00:58.1]} 24... Qxc8 {[%clk 0:00:39.2]} 25. dxe5
{[%clk 0:00:56.9]} 25... Nd7 {[%clk 0:00:39.2]} 26. Bxa6 {[%clk 0:00:54.6]}
26... Nc5 {[%clk 0:00:31.7]} 27. Bxc8 {[%clk 0:00:52.9]} 27... Nxa4 {[%clk
0:00:31.6]} 28. Rxa4 {[%clk 0:00:50.7]} 28... Rxc8 {[%clk 0:00:30.8]} 29. d7
{[%clk 0:00:50.8]} 1-0

[Event "*** Titled Tuesday Blitz"]
[Site "Chess.com"]
[Date "2020.05.05"]
[Round "8"]
[White "PotapovaM"]
[Black "DaggiGretarsson"]
[Result "0-1"]
[WhiteElo "2383"]
[BlackElo "2516"]
[TimeControl "180+1"]
[EndTime "11:34:16 PDT"]
[Termination "DaggiGretarsson won by resignation"]

1. d4 {[%clk 0:03:00.9]} 1... g6 {[%clk 0:02:59.6]} 2. e4 {[%clk 0:02:59.9]}
2... Bg7 {[%clk 0:02:59.8]} 3. Nc3 {[%clk 0:03:00.5]} 3... d6 {[%clk 0:03:00]}
4. Be3 {[%clk 0:03:00.9]} 4... a6 {[%clk 0:02:59.4]} 5. h4 {[%clk 0:03:01.3]}
5... h5 {[%clk 0:02:56.2]} 6. Nh3 {[%clk 0:03:01.9]} 6... Bxh3 {[%clk
0:02:55.2]} 7. Rxh3 {[%clk 0:03:02.8]} 7... Nd7 {[%clk 0:02:55.4]} 8. Qd2 {[%clk
0:03:01.3]} 8... b5 {[%clk 0:02:54.6]} 9. O-O-O {[%clk 0:03:00.8]} 9... c6
{[%clk 0:02:48.3]} 10. Kb1 {[%clk 0:02:56.9]} 10... Ngf6 {[%clk 0:02:44.3]} 11.
f3 {[%clk 0:02:50.2]} 11... Nb6 {[%clk 0:02:31.9]} 12. Bd3 {[%clk 0:02:48.8]}
12... Qc7 {[%clk 0:02:22.1]} 13. e5 {[%clk 0:02:44.1]} 13... Nfd5 {[%clk
0:02:20.8]} 14. Nxd5 {[%clk 0:02:35.4]} 14... Nxd5 {[%clk 0:02:01.2]} 15. e6
{[%clk 0:02:35.5]} 15... fxe6 {[%clk 0:01:33.4]} 16. Bxg6+ {[%clk 0:02:34.8]}
16... Kd7 {[%clk 0:01:33.4]} 17. Bg5 {[%clk 0:02:31.3]} 17... c5 {[%clk
0:01:29.5]} 18. dxc5 {[%clk 0:02:29.2]} 18... Qxc5 {[%clk 0:01:29.3]} 19. Rhh1
{[%clk 0:02:11.2]} 19... Nc3+ {[%clk 0:01:18]} 20. bxc3 {[%clk 0:00:49.6]} 20...
Bxc3 {[%clk 0:01:16.3]} 21. Qf4 {[%clk 0:00:50.1]} 21... Qa3 {[%clk 0:01:15.6]}
22. Rxd6+ {[%clk 0:00:50.7]} 22... exd6 {[%clk 0:01:14.7]} 23. Qf7+ {[%clk
0:00:50.6]} 23... Kc6 {[%clk 0:01:14.7]} 24. Be4+ {[%clk 0:00:47.8]} 24... Kb6
{[%clk 0:01:14.1]} 25. Be3+ {[%clk 0:00:25.7]} 25... Ka5 {[%clk 0:01:12.5]} 26.
Qc7+ {[%clk 0:00:11.5]} 26... Ka4 {[%clk 0:01:11.8]} 27. Bc1 {[%clk 0:00:03.3]}
27... Qb4+ {[%clk 0:01:10.2]} 0-1

[Event "*** Titled Tuesday Blitz"]
[Site "Chess.com"]
[Date "2020.05.05"]
[Round "8"]
[White "NormWeinstein"]
[Black "pandamaster3000"]
[Result "1-0"]
[WhiteElo "2460"]
[BlackElo "2299"]
[TimeControl "180+1"]
[EndTime "11:34:16 PDT"]
[Termination "NormWeinstein won by resignation"]

1. e4 {[%clk 0:03:00.9]} 1... c5 {[%clk 0:02:59.5]} 2. Nf3 {[%clk 0:03:00.8]}
2... d6 {[%clk 0:02:59.6]} 3. Nc3 {[%clk 0:03:01.2]} 3... Nf6 {[%clk 0:02:59.6]}
4. e5 {[%clk 0:03:01.2]} 4... dxe5 {[%clk 0:02:58.9]} 5. Nxe5 {[%clk 0:03:01.6]}
5... e6 {[%clk 0:02:49.6]} 6. g3 {[%clk 0:03:01]} 6... Be7 {[%clk 0:02:41.3]} 7.
Bg2 {[%clk 0:03:00.7]} 7... O-O {[%clk 0:02:41.4]} 8. d3 {[%clk 0:03:00.4]} 8...
Nbd7 {[%clk 0:02:34.3]} 9. Nc4 {[%clk 0:03:00.1]} 9... Nb6 {[%clk 0:02:16.6]}
10. O-O {[%clk 0:02:58.6]} 10... Nxc4 {[%clk 0:02:10.4]} 11. dxc4 {[%clk
0:02:58]} 11... Qb6 {[%clk 0:02:05.2]} 12. Qf3 {[%clk 0:02:57.8]} 12... Rd8
{[%clk 0:01:55.5]} 13. b3 {[%clk 0:02:52.5]} 13... Ne8 {[%clk 0:01:27.2]} 14.
Bb2 {[%clk 0:02:39]} 14... Bf6 {[%clk 0:01:00.2]} 15. Rad1 {[%clk 0:02:37.4]}
15... Rxd1 {[%clk 0:00:55.5]} 16. Rxd1 {[%clk 0:02:37.2]} 16... Rb8 {[%clk
0:00:40.2]} 17. Qf4 {[%clk 0:02:19]} 17... Ra8 {[%clk 0:00:21.6]} 18. Na4 {[%clk
0:02:00.3]} 18... Qa5 {[%clk 0:00:19.4]} 19. Bxf6 {[%clk 0:01:44.5]} 19... Nxf6
{[%clk 0:00:20.3]} 20. Qd6 {[%clk 0:01:44]} 20... Ne8 {[%clk 0:00:16.1]} 21. Qe7
{[%clk 0:01:03.8]} 21... Bd7 {[%clk 0:00:03.6]} 22. Rxd7 {[%clk 0:00:52.7]}
22... Qe1+ {[%clk 0:00:04]} 23. Bf1 {[%clk 0:00:52.5]} 1-0

[Event "*** Titled Tuesday Blitz"]
[Site "Chess.com"]
[Date "2020.05.05"]
[Round "8"]
[White "DenisQ"]
[Black "keepitcool9499"]
[Result "1-0"]
[WhiteElo "2660"]
[BlackElo "2465"]
[TimeControl "180+1"]
[EndTime "11:34:17 PDT"]
[Termination "DenisQ won by resignation"]

1. Nf3 {[%clk 0:03:00.9]} 1... Nf6 {[%clk 0:02:56.7]} 2. c4 {[%clk 0:03:00]}
2... e6 {[%clk 0:02:55.6]} 3. g3 {[%clk 0:02:58.7]} 3... d5 {[%clk 0:02:55.5]}
4. Bg2 {[%clk 0:02:58.1]} 4... Be7 {[%clk 0:02:55.9]} 5. O-O {[%clk 0:02:57.5]}
5... O-O {[%clk 0:02:55.7]} 6. d4 {[%clk 0:02:56.9]} 6... b6 {[%clk 0:02:56]} 7.
cxd5 {[%clk 0:02:56.4]} 7... exd5 {[%clk 0:02:56.9]} 8. Nc3 {[%clk 0:02:55.7]}
8... Bb7 {[%clk 0:02:56.9]} 9. Ne5 {[%clk 0:02:55.1]} 9... Nbd7 {[%clk
0:02:54.6]} 10. Bg5 {[%clk 0:02:45.3]} 10... c6 {[%clk 0:02:50.4]} 11. Bf4
{[%clk 0:02:21.4]} 11... Nxe5 {[%clk 0:02:48]} 12. Bxe5 {[%clk 0:02:20.4]} 12...
Bd6 {[%clk 0:02:47.6]} 13. Bxd6 {[%clk 0:02:15.4]} 13... Qxd6 {[%clk 0:02:48.5]}
14. Rc1 {[%clk 0:02:14.4]} 14... Rfe8 {[%clk 0:02:46.9]} 15. e3 {[%clk
0:02:13.7]} 15... Rac8 {[%clk 0:02:45.8]} 16. Qa4 {[%clk 0:02:10.4]} 16... a6
{[%clk 0:02:45.1]} 17. Qb3 {[%clk 0:02:06.9]} 17... c5 {[%clk 0:02:42.4]} 18.
dxc5 {[%clk 0:01:56.8]} 18... Rxc5 {[%clk 0:02:33.3]} 19. Na4 {[%clk 0:01:55.4]}
19... Rb5 {[%clk 0:02:31]} 20. Qc2 {[%clk 0:01:45.1]} 20... h6 {[%clk
0:02:18.4]} 21. Qc7 {[%clk 0:01:39.5]} 21... Qxc7 {[%clk 0:02:15.6]} 22. Rxc7
{[%clk 0:01:40.4]} 22... Ba8 {[%clk 0:02:14.5]} 23. Rfc1 {[%clk 0:01:36.9]}
23... Rb4 {[%clk 0:02:07.6]} 24. b3 {[%clk 0:01:35.3]} 24... d4 {[%clk
0:02:02.9]} 25. Bxa8 {[%clk 0:01:22.5]} 25... Rxa8 {[%clk 0:02:01.3]} 26. exd4
{[%clk 0:01:22.5]} 26... Rxd4 {[%clk 0:01:41.1]} 27. Nxb6 {[%clk 0:01:20.7]}
27... Re8 {[%clk 0:01:40.7]} 28. Rc8 {[%clk 0:01:19]} 28... Rxc8 {[%clk
0:01:38.9]} 29. Rxc8+ {[%clk 0:01:19.9]} 29... Kh7 {[%clk 0:01:39.1]} 30. Rc2
{[%clk 0:01:18]} 30... Rd6 {[%clk 0:01:38.3]} 31. Nc4 {[%clk 0:01:16.2]} 31...
Re6 {[%clk 0:01:37.1]} 32. Kg2 {[%clk 0:01:15.2]} 32... Nd5 {[%clk 0:01:29.7]}
33. Rd2 {[%clk 0:01:14.5]} 33... Nb4 {[%clk 0:01:29.7]} 34. a3 {[%clk
0:01:12.8]} 34... Nc6 {[%clk 0:01:30.1]} 35. Rd6 {[%clk 0:01:01.8]} 35... Rxd6
{[%clk 0:01:24.9]} 36. Nxd6 {[%clk 0:01:02.7]} 36... Nd4 {[%clk 0:01:25.1]} 37.
b4 {[%clk 0:01:01.1]} 37... Nc2 {[%clk 0:01:25.1]} 38. b5 {[%clk 0:01:00.8]}
38... axb5 {[%clk 0:01:22.2]} 39. Nxb5 {[%clk 0:01:01.7]} 39... Kg6 {[%clk
0:01:22.3]} 40. Kf3 {[%clk 0:00:59.9]} 40... Kf6 {[%clk 0:01:22.7]} 41. Ke4
{[%clk 0:00:59.4]} 41... Ke6 {[%clk 0:01:23.1]} 42. Nd4+ {[%clk 0:00:58.9]}
42... Nxd4 {[%clk 0:01:22.6]} 43. Kxd4 {[%clk 0:00:59.8]} 43... Kd6 {[%clk
0:01:23.4]} 44. g4 {[%clk 0:00:58.8]} 44... Kc6 {[%clk 0:01:23.6]} 45. Ke5
{[%clk 0:00:55.9]} 45... Kc5 {[%clk 0:01:21.2]} 46. h4 {[%clk 0:00:55.3]} 46...
Kc6 {[%clk 0:01:20.9]} 47. h5 {[%clk 0:00:54.4]} 47... Kc5 {[%clk 0:01:20.1]}
48. f4 {[%clk 0:00:53.9]} 48... g6 {[%clk 0:01:17.4]} 49. Kf6 {[%clk 0:00:52.2]}
49... g5 {[%clk 0:01:16.9]} 50. fxg5 {[%clk 0:00:51.8]} 50... hxg5 {[%clk
0:01:16.7]} 1-0

[Event "*** Titled Tuesday Blitz"]
[Site "Chess.com"]
[Date "2020.05.05"]
[Round "8"]
[White "peixe64"]
[Black "Ariadna_Atreides"]
[Result "1-0"]
[WhiteElo "2228"]
[BlackElo "1999"]
[TimeControl "180+1"]
[EndTime "11:34:19 PDT"]
[Termination "peixe64 won by resignation"]

1. d4 {[%clk 0:03:00.9]} 1... e6 {[%clk 0:02:59.7]} 2. c4 {[%clk 0:03:01.1]}
2... Bb4+ {[%clk 0:02:59.1]} 3. Nd2 {[%clk 0:02:58.5]} 3... b6 {[%clk
0:02:56.5]} 4. a3 {[%clk 0:02:55.1]} 4... Bxd2+ {[%clk 0:02:53.7]} 5. Bxd2
{[%clk 0:02:56]} 5... Bb7 {[%clk 0:02:52.3]} 6. Bc3 {[%clk 0:02:53.9]} 6... Nf6
{[%clk 0:02:50.7]} 7. f3 {[%clk 0:02:53.6]} 7... d5 {[%clk 0:02:48.5]} 8. e3
{[%clk 0:02:52.3]} 8... O-O {[%clk 0:02:47.1]} 9. Bd3 {[%clk 0:02:51.8]} 9... c5
{[%clk 0:02:40.2]} 10. dxc5 {[%clk 0:02:51.7]} 10... bxc5 {[%clk 0:02:39.9]} 11.
Ne2 {[%clk 0:02:47]} 11... Nc6 {[%clk 0:02:33.3]} 12. Qd2 {[%clk 0:02:11.6]}
12... a5 {[%clk 0:02:27.5]} 13. Rd1 {[%clk 0:02:08.7]} 13... d4 {[%clk
0:02:22.8]} 14. exd4 {[%clk 0:02:08.1]} 14... cxd4 {[%clk 0:02:22.7]} 15. Nxd4
{[%clk 0:02:06.9]} 15... Nxd4 {[%clk 0:02:05.5]} 16. Bxd4 {[%clk 0:02:06.4]}
16... Bc6 {[%clk 0:01:49.9]} 17. Qf2 {[%clk 0:01:50.8]} 17... e5 {[%clk
0:01:30.5]} 18. Bc5 {[%clk 0:01:51]} 18... Qc7 {[%clk 0:01:14]} 19. Bxf8 {[%clk
0:01:46.7]} 19... Rxf8 {[%clk 0:01:14.4]} 20. O-O {[%clk 0:01:45.2]} 20... a4
{[%clk 0:01:14.1]} 21. Qh4 {[%clk 0:01:30]} 21... h6 {[%clk 0:01:11.2]} 22. Kh1
{[%clk 0:01:25.3]} 22... Qb6 {[%clk 0:01:08.4]} 23. Rd2 {[%clk 0:01:18]} 23...
Rd8 {[%clk 0:01:06.7]} 24. Rfd1 {[%clk 0:01:12.8]} 24... Re8 {[%clk 0:00:46.4]}
25. Bf5 {[%clk 0:01:08.2]} 25... e4 {[%clk 0:00:42.2]} 26. fxe4 {[%clk
0:01:06.9]} 26... Bxe4 {[%clk 0:00:38.1]} 27. Qf2 {[%clk 0:00:43.7]} 27... Bxf5
{[%clk 0:00:35.6]} 28. Qxb6 {[%clk 0:00:41.9]} 1-0

[Event "*** Titled Tuesday Blitz"]
[Site "Chess.com"]
[Date "2020.05.05"]
[Round "8"]
[White "albano87"]
[Black "kreonx"]
[Result "1-0"]
[WhiteElo "2406"]
[BlackElo "2226"]
[TimeControl "180+1"]
[EndTime "11:34:22 PDT"]
[Termination "albano87 won on time"]

1. Nf3 {[%clk 0:03:00.9]} 1... g6 {[%clk 0:02:58.7]} 2. d4 {[%clk 0:02:58.3]}
2... f5 {[%clk 0:02:58.7]} 3. g3 {[%clk 0:02:54]} 3... Nf6 {[%clk 0:02:58.3]} 4.
Bg2 {[%clk 0:02:53.4]} 4... Bg7 {[%clk 0:02:58.5]} 5. O-O {[%clk 0:02:52.2]}
5... O-O {[%clk 0:02:59.1]} 6. c4 {[%clk 0:02:52.2]} 6... d6 {[%clk 0:02:59.2]}
7. Nc3 {[%clk 0:02:51.9]} 7... Qe8 {[%clk 0:02:59.3]} 8. d5 {[%clk 0:02:48]}
8... a5 {[%clk 0:02:59.8]} 9. Be3 {[%clk 0:02:41.7]} 9... Na6 {[%clk 0:02:56.6]}
10. b3 {[%clk 0:02:30.8]} 10... Bd7 {[%clk 0:02:45.9]} 11. Qd2 {[%clk
0:02:23.9]} 11... Ng4 {[%clk 0:02:44.7]} 12. Bd4 {[%clk 0:02:20.3]} 12... Bh6
{[%clk 0:02:44.6]} 13. Ng5 {[%clk 0:02:14.2]} 13... c5 {[%clk 0:02:30.9]} 14.
dxc6 {[%clk 0:02:14]} 14... bxc6 {[%clk 0:02:30.7]} 15. Na4 {[%clk 0:02:04.5]}
15... Nc7 {[%clk 0:01:27]} 16. Bb2 {[%clk 0:02:00.2]} 16... Ne6 {[%clk
0:01:12.8]} 17. h4 {[%clk 0:01:54.1]} 17... Nxg5 {[%clk 0:01:05.1]} 18. hxg5
{[%clk 0:01:53.2]} 18... Bg7 {[%clk 0:01:05.5]} 19. Bxg7 {[%clk 0:01:49.2]}
19... Kxg7 {[%clk 0:01:05.5]} 20. c5 {[%clk 0:01:49.6]} 20... Ne5 {[%clk
0:00:46.6]} 21. cxd6 {[%clk 0:01:44.7]} 21... Nf7 {[%clk 0:00:43.5]} 22. dxe7
{[%clk 0:01:40]} 22... Qxe7 {[%clk 0:00:43.3]} 23. Rad1 {[%clk 0:01:32]} 23...
Rad8 {[%clk 0:00:40.2]} 24. f4 {[%clk 0:01:24.1]} 24... c5 {[%clk 0:00:27.4]}
25. Nb6 {[%clk 0:01:18.6]} 25... Bb5 {[%clk 0:00:16.5]} 26. Qc3+ {[%clk
0:01:12.7]} 26... Kg8 {[%clk 0:00:17]} 27. Nd5 {[%clk 0:01:11.5]} 27... Rxd5
{[%clk 0:00:02.7]} 28. Rxd5 {[%clk 0:01:09.6]} 1-0

[Event "*** Titled Tuesday Blitz"]
[Site "Chess.com"]
[Date "2020.05.05"]
[Round "8"]
[White "realmadridtv"]
[Black "Zhuu96"]
[Result "0-1"]
[WhiteElo "2399"]
[BlackElo "2910"]
[TimeControl "180+1"]
[EndTime "11:34:27 PDT"]
[Termination "Zhuu96 won by resignation"]

1. d4 {[%clk 0:03:00.9]} 1... Nf6 {[%clk 0:02:59.7]} 2. c4 {[%clk 0:03:00.6]}
2... e6 {[%clk 0:02:58.3]} 3. g3 {[%clk 0:03:00.3]} 3... Bb4+ {[%clk 0:02:56.2]}
4. Nd2 {[%clk 0:02:57.9]} 4... O-O {[%clk 0:02:55.4]} 5. Nf3 {[%clk 0:02:55.9]}
5... d5 {[%clk 0:02:55.6]} 6. Bg2 {[%clk 0:02:55.8]} 6... c6 {[%clk 0:02:54.7]}
7. O-O {[%clk 0:02:54.4]} 7... b6 {[%clk 0:02:53.8]} 8. Qc2 {[%clk 0:02:51.2]}
8... Bb7 {[%clk 0:02:53.4]} 9. Ne5 {[%clk 0:02:46]} 9... Nbd7 {[%clk 0:02:51.4]}
10. cxd5 {[%clk 0:02:38.9]} 10... cxd5 {[%clk 0:02:49.3]} 11. Nc6 {[%clk
0:02:27.8]} 11... Bxc6 {[%clk 0:02:46.4]} 12. Qxc6 {[%clk 0:02:28.7]} 12... a6
{[%clk 0:02:38.9]} 13. Qa4 {[%clk 0:02:18.8]} 13... Qe7 {[%clk 0:02:37.6]} 14.
a3 {[%clk 0:02:14.1]} 14... Bd6 {[%clk 0:02:36.9]} 15. e4 {[%clk 0:02:12.3]}
15... dxe4 {[%clk 0:02:30]} 16. Nxe4 {[%clk 0:02:12.4]} 16... Nxe4 {[%clk
0:02:25.9]} 17. Bxe4 {[%clk 0:02:13.3]} 17... Ra7 {[%clk 0:02:24.9]} 18. Bg2
{[%clk 0:01:50.9]} 18... b5 {[%clk 0:02:23.4]} 19. Qb3 {[%clk 0:01:46.6]} 19...
Rc8 {[%clk 0:02:22.1]} 20. Bd2 {[%clk 0:01:38.7]} 20... Nb6 {[%clk 0:02:14.8]}
21. Rae1 {[%clk 0:01:20.3]} 21... Qd7 {[%clk 0:02:09.2]} 22. d5 {[%clk
0:01:15.2]} 22... Nxd5 {[%clk 0:02:05.3]} 23. Bxd5 {[%clk 0:01:12.1]} 23... exd5
{[%clk 0:02:05.4]} 24. Qxd5 {[%clk 0:01:10.2]} 24... Bxa3 {[%clk 0:01:58.5]} 25.
Qxd7 {[%clk 0:00:50.8]} 25... Rxd7 {[%clk 0:01:57.7]} 26. Bc3 {[%clk 0:00:49.6]}
26... Bc5 {[%clk 0:01:53.5]} 27. Rd1 {[%clk 0:00:45.5]} 27... Rxd1 {[%clk
0:01:48.2]} 28. Rxd1 {[%clk 0:00:46.4]} 28... b4 {[%clk 0:01:47.8]} 29. Be5
{[%clk 0:00:41.8]} 29... f6 {[%clk 0:01:47.5]} 30. Bf4 {[%clk 0:00:37.3]} 30...
g5 {[%clk 0:01:43.5]} 31. Be3 {[%clk 0:00:28.6]} 31... Bxe3 {[%clk 0:01:42.9]}
32. fxe3 {[%clk 0:00:29.5]} 32... Rc2 {[%clk 0:01:37]} 33. Rd6 {[%clk
0:00:29.4]} 33... Rxb2 {[%clk 0:01:31.4]} 34. Rxa6 {[%clk 0:00:29.4]} 34... b3
{[%clk 0:01:29.5]} 35. Rxf6 {[%clk 0:00:26.9]} 35... Rc2 {[%clk 0:01:27.3]} 36.
Rb6 {[%clk 0:00:11.8]} 36... b2 {[%clk 0:01:26.9]} 37. Kf1 {[%clk 0:00:09.9]}
37... Rc1+ {[%clk 0:01:27]} 0-1